[Event "*** Titled Tuesday Blitz"]
[Site "Chess.com"]
[Date "2020.05.26"]
[Round "9"]
[White "Saxar85"]
[Black "eljanov"]
[Result "0-1"]
[WhiteElo "2702"]
[BlackElo "2862"]
[TimeControl "180+1"]
[EndTime "11:53:16 PDT"]
[Termination "eljanov won on time"]

1. Nf3 {[%clk 0:02:58.8]} 1... d5 {[%clk 0:02:59.6]} 2. g3 {[%clk 0:02:58.8]}
2... Bg4 {[%clk 0:02:59.1]} 3. Bg2 {[%clk 0:02:58.6]} 3... c6 {[%clk 0:02:59]}
4. O-O {[%clk 0:02:57.8]} 4... e6 {[%clk 0:02:59.4]} 5. h3 {[%clk 0:02:57.2]}
5... Bh5 {[%clk 0:02:58.7]} 6. d4 {[%clk 0:02:57.3]} 6... Nf6 {[%clk 0:02:56.4]}
7. c4 {[%clk 0:02:56.9]} 7... Nbd7 {[%clk 0:02:53.7]} 8. cxd5 {[%clk 0:02:53]}
8... exd5 {[%clk 0:02:53.2]} 9. Qb3 {[%clk 0:02:53]} 9... Qb6 {[%clk 0:02:53.3]}
10. Qe3+ {[%clk 0:02:52]} 10... Be7 {[%clk 0:02:53.7]} 11. Nh4 {[%clk 0:02:52]}
11... Bg6 {[%clk 0:02:52.4]} 12. Nc3 {[%clk 0:02:48.8]} 12... Nf8 {[%clk
0:02:48.9]} 13. Rd1 {[%clk 0:02:42.4]} 13... Ne6 {[%clk 0:02:41.3]} 14. Nxg6
{[%clk 0:02:41.8]} 14... hxg6 {[%clk 0:02:40.8]} 15. Qd3 {[%clk 0:02:40]} 15...
O-O {[%clk 0:02:38.4]} 16. b3 {[%clk 0:02:39.2]} 16... Rfe8 {[%clk 0:02:31.1]}
17. Be3 {[%clk 0:02:25.2]} 17... a5 {[%clk 0:02:23.6]} 18. Rab1 {[%clk
0:02:20.3]} 18... Bd6 {[%clk 0:02:10.8]} 19. Rbc1 {[%clk 0:02:13.7]} 19... Re7
{[%clk 0:02:06.4]} 20. Na4 {[%clk 0:02:07.2]} 20... Qc7 {[%clk 0:01:57.6]} 21.
Nc5 {[%clk 0:02:01.3]} 21... Rae8 {[%clk 0:01:42.1]} 22. Bd2 {[%clk 0:01:42.6]}
22... Nxc5 {[%clk 0:01:34.7]} 23. dxc5 {[%clk 0:01:41.9]} 23... Be5 {[%clk
0:01:35.3]} 24. Rc2 {[%clk 0:01:35]} 24... Ne4 {[%clk 0:01:14.4]} 25. Be3 {[%clk
0:01:17.3]} 25... f5 {[%clk 0:01:00.7]} 26. Bd4 {[%clk 0:00:49.9]} 26... Bxd4
{[%clk 0:00:40.6]} 27. Qxd4 {[%clk 0:00:49.6]} 27... g5 {[%clk 0:00:40.2]} 28.
e3 {[%clk 0:00:44.9]} 28... Rf8 {[%clk 0:00:29.3]} 29. Re1 {[%clk 0:00:44.6]}
29... g6 {[%clk 0:00:28.8]} 30. Rce2 {[%clk 0:00:41]} 30... Qe5 {[%clk
0:00:26.4]} 31. a3 {[%clk 0:00:39.1]} 31... Ra8 {[%clk 0:00:25.4]} 32. Rb2
{[%clk 0:00:33.1]} 32... Kf7 {[%clk 0:00:18.9]} 33. Rbe2 {[%clk 0:00:32.1]}
33... Nc3 {[%clk 0:00:17.7]} 34. Rd2 {[%clk 0:00:25.1]} 34... Qxd4 {[%clk
0:00:18]} 35. Rxd4 {[%clk 0:00:25.2]} 35... Nb5 {[%clk 0:00:18.6]} 36. Ra4
{[%clk 0:00:24.4]} 36... Ree8 {[%clk 0:00:15.4]} 37. Bf1 {[%clk 0:00:20.7]}
37... Nc3 {[%clk 0:00:15.4]} 38. Rd4 {[%clk 0:00:20.1]} 38... Ne4 {[%clk
0:00:11]} 39. Rc1 {[%clk 0:00:19.9]} 39... Nf6 {[%clk 0:00:08.4]} 40. Bd3 {[%clk
0:00:18.9]} 40... Nd7 {[%clk 0:00:08.7]} 41. b4 {[%clk 0:00:16]} 41... axb4
{[%clk 0:00:08.6]} 42. Rxb4 {[%clk 0:00:16]} 42... Ra7 {[%clk 0:00:07.8]} 43. a4
{[%clk 0:00:15.9]} 43... Rea8 {[%clk 0:00:07]} 44. g4 {[%clk 0:00:14.9]} 44...
Kf6 {[%clk 0:00:06.1]} 45. h4 {[%clk 0:00:14.8]} 45... gxh4 {[%clk 0:00:04.7]}
46. gxf5 {[%clk 0:00:15.1]} 46... g5 {[%clk 0:00:04.2]} 47. Kg2 {[%clk
0:00:12.8]} 47... Ne5 {[%clk 0:00:04]} 48. Be2 {[%clk 0:00:12.7]} 48... Rxa4
{[%clk 0:00:03.7]} 49. Rxb7 {[%clk 0:00:11.9]} 49... g4 {[%clk 0:00:04.1]} 50.
Rh7 {[%clk 0:00:09.7]} 50... Ra2 {[%clk 0:00:04]} 51. Re1 {[%clk 0:00:08.1]}
51... h3+ {[%clk 0:00:02.4]} 52. Kg3 {[%clk 0:00:08.3]} 52... Rc2 {[%clk
0:00:03]} 53. Rh6+ {[%clk 0:00:07.8]} 53... Kg5 {[%clk 0:00:03.4]} 54. Rd6
{[%clk 0:00:06.7]} 54... Raa2 {[%clk 0:00:02.5]} 55. f4+ {[%clk 0:00:03.3]}
55... gxf3 {[%clk 0:00:02.5]} 56. Bxf3 {[%clk 0:00:03.6]} 56... Nxf3 {[%clk
0:00:02.4]} 57. Kxf3 {[%clk 0:00:03.5]} 57... Rf2+ {[%clk 0:00:01.8]} 58. Kg3
{[%clk 0:00:02.5]} 58... h2 {[%clk 0:00:02.3]} 59. Rh1 {[%clk 0:00:01.7]} 59...
Rxf5 {[%clk 0:00:01.6]} 0-1

[Event "*** Titled Tuesday Blitz"]
[Site "Chess.com"]
[Date "2020.05.26"]
[Round "9"]
[White "penguingm1"]
[Black "rasmussvane"]
[Result "1-0"]
[WhiteElo "2892"]
[BlackElo "2855"]
[TimeControl "180+1"]
[EndTime "11:53:22 PDT"]
[Termination "penguingm1 won by resignation"]

1. d4 {[%clk 0:03:00.9]} 1... d5 {[%clk 0:03:00.6]} 2. Bf4 {[%clk 0:03:00.5]}
2... e6 {[%clk 0:03:01.2]} 3. e3 {[%clk 0:03:00.8]} 3... Nf6 {[%clk 0:03:01.7]}
4. Nf3 {[%clk 0:03:01.3]} 4... Bd6 {[%clk 0:03:02.4]} 5. Nbd2 {[%clk 0:03:01.5]}
5... O-O {[%clk 0:03:02.9]} 6. Bd3 {[%clk 0:02:55.4]} 6... c5 {[%clk 0:03:02.1]}
7. c3 {[%clk 0:02:53.5]} 7... b6 {[%clk 0:03:02.3]} 8. Qe2 {[%clk 0:02:51.5]}
8... Bxf4 {[%clk 0:02:57.2]} 9. exf4 {[%clk 0:02:51.8]} 9... a5 {[%clk
0:02:56.6]} 10. O-O {[%clk 0:02:51.3]} 10... Ba6 {[%clk 0:02:55.4]} 11. Rfe1
{[%clk 0:02:50.8]} 11... Qd6 {[%clk 0:02:52.2]} 12. Ne5 {[%clk 0:02:40.4]} 12...
cxd4 {[%clk 0:02:42.7]} 13. cxd4 {[%clk 0:02:37.2]} 13... Bxd3 {[%clk
0:02:42.8]} 14. Qxd3 {[%clk 0:02:38.1]} 14... Nc6 {[%clk 0:02:43.3]} 15. Rac1
{[%clk 0:02:31.1]} 15... Rfc8 {[%clk 0:02:38.5]} 16. a3 {[%clk 0:02:15.7]} 16...
Ne7 {[%clk 0:02:35.2]} 17. f3 {[%clk 0:02:02.2]} 17... Rc7 {[%clk 0:02:34.4]}
18. Nb1 {[%clk 0:01:55.8]} 18... Rac8 {[%clk 0:02:27.3]} 19. Nc3 {[%clk
0:01:45.2]} 19... Qd8 {[%clk 0:02:24.8]} 20. g4 {[%clk 0:01:41.5]} 20... Ne8
{[%clk 0:02:18.8]} 21. Qa6 {[%clk 0:01:17.3]} 21... Ng6 {[%clk 0:01:36.2]} 22.
Nxg6 {[%clk 0:00:54.4]} 22... hxg6 {[%clk 0:01:37.1]} 23. Qxb6 {[%clk
0:00:46.6]} 23... Nd6 {[%clk 0:01:37.5]} 24. Re2 {[%clk 0:00:21.6]} 24... Nc4
{[%clk 0:01:35.1]} 25. Qb3 {[%clk 0:00:21.9]} 25... Qf6 {[%clk 0:01:34.2]} 26.
Nb5 {[%clk 0:00:16.6]} 26... Qxf4 {[%clk 0:01:24.8]} 27. Rc3 {[%clk 0:00:16.2]}
27... Nd2 {[%clk 0:01:12.5]} 28. Rxc7 {[%clk 0:00:09.4]} 28... Rxc7 {[%clk
0:01:09.8]} 29. Qe3 {[%clk 0:00:05.5]} 29... Nxf3+ {[%clk 0:00:45.1]} 30. Kf2
{[%clk 0:00:05.7]} 30... Qxe3+ {[%clk 0:00:35.9]} 31. Rxe3 {[%clk 0:00:04.2]}
31... Rb7 {[%clk 0:00:26.2]} 32. Nd6 {[%clk 0:00:03.8]} 32... Rb6 {[%clk
0:00:23.1]} 33. Nc8 {[%clk 0:00:03.1]} 33... Rb8 {[%clk 0:00:23.4]} 34. Ne7+
{[%clk 0:00:03.2]} 34... Kf8 {[%clk 0:00:24]} 35. Nxg6+ {[%clk 0:00:01.9]} 35...
fxg6 {[%clk 0:00:21.5]} 36. Rxf3+ {[%clk 0:00:02.5]} 36... Ke7 {[%clk 0:00:22]}
37. b3 {[%clk 0:00:03.3]} 37... Rc8 {[%clk 0:00:21.5]} 38. Rd3 {[%clk
0:00:03.8]} 38... Rc2+ {[%clk 0:00:21.3]} 39. Kg3 {[%clk 0:00:04.4]} 39... Ra2
{[%clk 0:00:21.5]} 40. a4 {[%clk 0:00:04]} 40... g5 {[%clk 0:00:22]} 41. h4
{[%clk 0:00:04.2]} 41... gxh4+ {[%clk 0:00:13.9]} 42. Kxh4 {[%clk 0:00:05.1]}
42... Re2 {[%clk 0:00:13.9]} 43. Kg5 {[%clk 0:00:05.1]} 43... Re4 {[%clk
0:00:14.2]} 44. Kh5 {[%clk 0:00:05.1]} 44... Kf7 {[%clk 0:00:11.6]} 45. Rf3+
{[%clk 0:00:05]} 45... Ke7 {[%clk 0:00:08.8]} 46. Rd3 {[%clk 0:00:04.8]} 46...
Kf6 {[%clk 0:00:08.5]} 47. g5+ {[%clk 0:00:04.4]} 47... Ke7 {[%clk 0:00:08.5]}
48. Kg6 {[%clk 0:00:04.1]} 48... Kf8 {[%clk 0:00:08]} 49. Rf3+ {[%clk
0:00:04.5]} 49... Ke7 {[%clk 0:00:06.7]} 50. Rf7+ {[%clk 0:00:04.6]} 50... Kd6
{[%clk 0:00:07.2]} 51. Kxg7 {[%clk 0:00:05.1]} 51... Rxd4 {[%clk 0:00:07.7]} 52.
g6 {[%clk 0:00:05.7]} 52... Rg4 {[%clk 0:00:08]} 53. Ra7 {[%clk 0:00:06.2]}
53... d4 {[%clk 0:00:08.2]} 54. Rxa5 {[%clk 0:00:06.4]} 54... d3 {[%clk
0:00:08.6]} 55. Ra8 {[%clk 0:00:06.8]} 55... Kd7 {[%clk 0:00:09]} 56. Ra7+
{[%clk 0:00:06.2]} 56... Kd6 {[%clk 0:00:09.3]} 57. Rf7 {[%clk 0:00:06.9]} 57...
Rg1 {[%clk 0:00:08.5]} 58. Rf2 {[%clk 0:00:06.8]} 58... Kd5 {[%clk 0:00:08.5]}
59. Kf7 {[%clk 0:00:06.4]} 59... e5 {[%clk 0:00:08.5]} 60. g7 {[%clk 0:00:04.7]}
60... e4 {[%clk 0:00:08.4]} 61. Kf6 {[%clk 0:00:05.2]} 61... Rxg7 {[%clk
0:00:07.1]} 62. Kxg7 {[%clk 0:00:04.7]} 62... e3 {[%clk 0:00:07.6]} 63. Rf5+
{[%clk 0:00:04.7]} 63... Ke4 {[%clk 0:00:06.6]} 64. Kf6 {[%clk 0:00:05.1]} 64...
d2 {[%clk 0:00:06.8]} 65. Re5+ {[%clk 0:00:05.6]} 65... Kd4 {[%clk 0:00:06]} 66.
Re8 {[%clk 0:00:03.2]} 66... Kc3 {[%clk 0:00:06.3]} 67. Rxe3+ {[%clk 0:00:03.3]}
67... Kc2 {[%clk 0:00:05.1]} 68. Re2 {[%clk 0:00:03.6]} 68... Kd3 {[%clk
0:00:06]} 69. Rxd2+ {[%clk 0:00:04.1]} 69... Kxd2 {[%clk 0:00:06.9]} 70. a5
{[%clk 0:00:05]} 1-0

[Event "*** Titled Tuesday Blitz"]
[Site "Chess.com"]
[Date "2020.05.26"]
[Round "9"]
[White "KuzubovYuriy"]
[Black "Shubinkirill2003"]
[Result "0-1"]
[WhiteElo "2760"]
[BlackElo "2646"]
[TimeControl "180+1"]
[EndTime "11:53:22 PDT"]
[Termination "Shubinkirill2003 won on time"]

1. d4 {[%clk 0:03:00.9]} 1... e6 {[%clk 0:02:59.9]} 2. c4 {[%clk 0:03:01.2]}
2... Nf6 {[%clk 0:02:59.5]} 3. Nc3 {[%clk 0:03:00.7]} 3... Bb4 {[%clk
0:02:58.8]} 4. e3 {[%clk 0:03:01.3]} 4... O-O {[%clk 0:02:58.2]} 5. Ne2 {[%clk
0:03:01.7]} 5... d5 {[%clk 0:02:57.6]} 6. a3 {[%clk 0:03:00.9]} 6... Be7 {[%clk
0:02:56.6]} 7. Ng3 {[%clk 0:02:59.7]} 7... c5 {[%clk 0:02:54.2]} 8. dxc5 {[%clk
0:02:59.1]} 8... Bxc5 {[%clk 0:02:54.7]} 9. b4 {[%clk 0:02:59.5]} 9... Bb6
{[%clk 0:02:54]} 10. Bb2 {[%clk 0:02:57.2]} 10... Nc6 {[%clk 0:02:53.6]} 11.
cxd5 {[%clk 0:02:36]} 11... exd5 {[%clk 0:02:52.2]} 12. Nce2 {[%clk 0:02:34.8]}
12... Re8 {[%clk 0:02:31.6]} 13. Nd4 {[%clk 0:02:23.8]} 13... a5 {[%clk
0:02:10]} 14. b5 {[%clk 0:02:23.2]} 14... Ne5 {[%clk 0:02:09.1]} 15. Be2 {[%clk
0:02:22.2]} 15... Bd7 {[%clk 0:01:59.6]} 16. O-O {[%clk 0:02:20.6]} 16... Rc8
{[%clk 0:01:59]} 17. Rc1 {[%clk 0:02:19.1]} 17... Nc4 {[%clk 0:01:55.6]} 18.
Bxc4 {[%clk 0:02:15.9]} 18... dxc4 {[%clk 0:01:56.5]} 19. Qa4 {[%clk 0:02:04]}
19... Ng4 {[%clk 0:01:27.3]} 20. Rxc4 {[%clk 0:01:56.2]} 20... Ne5 {[%clk
0:01:09]} 21. Rxc8 {[%clk 0:01:50.8]} 21... Bxc8 {[%clk 0:01:05.1]} 22. Rd1
{[%clk 0:01:49.9]} 22... Bg4 {[%clk 0:01:00.8]} 23. Rd2 {[%clk 0:01:45.2]} 23...
Qc8 {[%clk 0:00:55.4]} 24. h3 {[%clk 0:01:29.7]} 24... Bd7 {[%clk 0:00:50.2]}
25. Rc2 {[%clk 0:01:26.6]} 25... Qd8 {[%clk 0:00:47.2]} 26. Qb3 {[%clk
0:01:15.5]} 26... Qg5 {[%clk 0:00:23.2]} 27. Qd5 {[%clk 0:01:08]} 27... Qg6
{[%clk 0:00:18.2]} 28. Rd2 {[%clk 0:00:54.3]} 28... Bc8 {[%clk 0:00:17.7]} 29.
Ndf5 {[%clk 0:00:47.6]} 29... Bxf5 {[%clk 0:00:16.3]} 30. Bxe5 {[%clk
0:00:46.1]} 30... Bc8 {[%clk 0:00:15.2]} 31. Bd4 {[%clk 0:00:37.9]} 31... Bc7
{[%clk 0:00:14.8]} 32. Nf1 {[%clk 0:00:32.4]} 32... h5 {[%clk 0:00:11.1]} 33. f3
{[%clk 0:00:17.9]} 33... h4 {[%clk 0:00:07.5]} 34. Qc4 {[%clk 0:00:17.7]} 34...
Bb8 {[%clk 0:00:06.3]} 35. b6 {[%clk 0:00:16.8]} 35... Bxh3 {[%clk 0:00:05.7]}
36. Qb5 {[%clk 0:00:13.7]} 36... Rd8 {[%clk 0:00:05.3]} 37. Qxa5 {[%clk
0:00:13.2]} 37... Be6 {[%clk 0:00:03.3]} 38. Bc3 {[%clk 0:00:10.5]} 38... Rxd2
{[%clk 0:00:02.6]} 39. Bxd2 {[%clk 0:00:11.3]} 39... h3 {[%clk 0:00:03.5]} 40.
g4 {[%clk 0:00:07.6]} 40... Qd3 {[%clk 0:00:03.9]} 41. Qh5 {[%clk 0:00:05.7]}
41... Bc4 {[%clk 0:00:01.9]} 42. Qxh3 {[%clk 0:00:04.8]} 42... Qe2 {[%clk
0:00:02]} 43. Qg2 {[%clk 0:00:05]} 43... Qd1 {[%clk 0:00:01.7]} 44. Bc3 {[%clk
0:00:04.7]} 44... Be2 {[%clk 0:00:01.8]} 45. f4 {[%clk 0:00:03.6]} 45... Bf3
{[%clk 0:00:02]} 46. Qf2 {[%clk 0:00:03.7]} 46... Bd6 {[%clk 0:00:02.3]} 47. Bd4
{[%clk 0:00:03.6]} 47... Bxa3 {[%clk 0:00:02.2]} 48. g5 {[%clk 0:00:03.6]} 48...
Be2 {[%clk 0:00:02.4]} 49. Kg2 {[%clk 0:00:03.5]} 49... Bd3 {[%clk 0:00:02.2]}
50. Ng3 {[%clk 0:00:03.6]} 50... Bb4 {[%clk 0:00:01.7]} 51. Qf3 {[%clk
0:00:03.6]} 51... Qc2+ {[%clk 0:00:02.1]} 52. Kh3 {[%clk 0:00:03.7]} 52... Bf5+
{[%clk 0:00:01.6]} 53. Nxf5 {[%clk 0:00:03.7]} 53... Qxf5+ {[%clk 0:00:02.5]}
54. Qg4 {[%clk 0:00:03.9]} 54... Qc2 {[%clk 0:00:02.3]} 55. Qf3 {[%clk
0:00:02.8]} 55... Qf5+ {[%clk 0:00:02.2]} 56. Kg2 {[%clk 0:00:03.1]} 56... Qc2+
{[%clk 0:00:02.4]} 57. Qf2 {[%clk 0:00:02.8]} 57... Qe4+ {[%clk 0:00:02.5]} 58.
Kg3 {[%clk 0:00:02.5]} 58... Bd6 {[%clk 0:00:01.7]} 59. Qf3 {[%clk 0:00:02.4]}
59... Qe7 {[%clk 0:00:01.8]} 60. Qd5 {[%clk 0:00:02]} 60... g6 {[%clk
0:00:02.1]} 61. Kf3 {[%clk 0:00:01.9]} 61... Ba3 {[%clk 0:00:01.5]} 62. Qe5
{[%clk 0:00:01.1]} 62... Qd7 {[%clk 0:00:01.6]} 0-1

[Event "*** Titled Tuesday Blitz"]
[Site "Chess.com"]
[Date "2020.05.26"]
[Round "9"]
[White "WeAintSurePal"]
[Black "davidkalashian"]
[Result "0-1"]
[WhiteElo "2353"]
[BlackElo "2611"]
[TimeControl "180+1"]
[EndTime "11:53:22 PDT"]
[Termination "davidkalashian won by resignation"]

1. d4 {[%clk 0:03:00.9]} 1... Nf6 {[%clk 0:02:59.3]} 2. Nf3 {[%clk 0:03:00.3]}
2... e6 {[%clk 0:02:59.2]} 3. Bf4 {[%clk 0:02:58.7]} 3... b6 {[%clk 0:02:55.2]}
4. e3 {[%clk 0:02:58.5]} 4... Bb7 {[%clk 0:02:55.4]} 5. c3 {[%clk 0:02:59]} 5...
Be7 {[%clk 0:02:55.6]} 6. Nbd2 {[%clk 0:02:59.5]} 6... O-O {[%clk 0:02:56]} 7.
Bd3 {[%clk 0:02:59.4]} 7... c5 {[%clk 0:02:56.4]} 8. O-O {[%clk 0:02:59.1]} 8...
cxd4 {[%clk 0:02:56.5]} 9. exd4 {[%clk 0:03:00]} 9... d6 {[%clk 0:02:56.4]} 10.
Qe2 {[%clk 0:02:59.8]} 10... a6 {[%clk 0:02:56.1]} 11. Rfe1 {[%clk 0:02:59.3]}
11... Re8 {[%clk 0:02:55.8]} 12. h3 {[%clk 0:02:59.1]} 12... Nbd7 {[%clk
0:02:54.6]} 13. Ne4 {[%clk 0:02:51.2]} 13... Nf8 {[%clk 0:02:47.7]} 14. Nxf6+
{[%clk 0:02:48.9]} 14... Bxf6 {[%clk 0:02:48.6]} 15. Be4 {[%clk 0:02:48.9]}
15... Bxe4 {[%clk 0:02:45.4]} 16. Qxe4 {[%clk 0:02:49.5]} 16... Ng6 {[%clk
0:02:43.6]} 17. Bg3 {[%clk 0:02:49.3]} 17... d5 {[%clk 0:02:41.5]} 18. Qe2
{[%clk 0:02:44.9]} 18... Qd7 {[%clk 0:02:37.7]} 19. a3 {[%clk 0:02:41.4]} 19...
b5 {[%clk 0:02:34.8]} 20. Qd3 {[%clk 0:02:40.4]} 20... Qb7 {[%clk 0:02:32.8]}
21. Ne5 {[%clk 0:02:38.2]} 21... Bxe5 {[%clk 0:02:31.6]} 22. Bxe5 {[%clk
0:02:38.7]} 22... Nxe5 {[%clk 0:02:27.6]} 23. Rxe5 {[%clk 0:02:38.3]} 23... a5
{[%clk 0:02:27.7]} 24. Rae1 {[%clk 0:02:33.7]} 24... b4 {[%clk 0:02:27.1]} 25.
axb4 {[%clk 0:02:33.4]} 25... axb4 {[%clk 0:02:27]} 26. R1e3 {[%clk 0:02:33.8]}
26... bxc3 {[%clk 0:02:26.1]} 27. bxc3 {[%clk 0:02:32.9]} 27... Rec8 {[%clk
0:02:23.9]} 28. Rg3 {[%clk 0:02:29.9]} 28... g6 {[%clk 0:02:19.5]} 29. h4 {[%clk
0:02:29]} 29... Ra1+ {[%clk 0:02:17.8]} 30. Kh2 {[%clk 0:02:28.7]} 30... Qb1
{[%clk 0:02:18]} 31. Qxb1 {[%clk 0:02:18.9]} 31... Rxb1 {[%clk 0:02:18.9]} 32.
h5 {[%clk 0:02:19.1]} 32... Rb2 {[%clk 0:02:13.9]} 33. Rf3 {[%clk 0:02:12.6]}
33... Rc2 {[%clk 0:02:07]} 34. hxg6 {[%clk 0:02:11]} 34... hxg6 {[%clk
0:02:05.5]} 35. Ree3 {[%clk 0:02:11.1]} 35... Ra8 {[%clk 0:02:01.7]} 36. Kg3
{[%clk 0:02:10.2]} 36... Kg7 {[%clk 0:02:01.7]} 37. Re1 {[%clk 0:02:08.8]} 37...
Ra3 {[%clk 0:01:58.5]} 38. Ree3 {[%clk 0:02:08.1]} 38... Rb3 {[%clk 0:01:58.5]}
39. Rd3 {[%clk 0:02:06.9]} 39... f5 {[%clk 0:01:51.8]} 40. Rfe3 {[%clk
0:01:47.5]} 40... Kf6 {[%clk 0:01:49.7]} 41. Rf3 {[%clk 0:01:39.6]} 41... g5
{[%clk 0:01:48.8]} 42. Kh2 {[%clk 0:01:34.8]} 42... g4 {[%clk 0:01:43.9]} 43.
Rfe3 {[%clk 0:01:34.6]} 43... Rxf2 {[%clk 0:01:42.2]} 44. Re1 {[%clk 0:01:32.2]}
44... Rbb2 {[%clk 0:01:37.7]} 45. Rde3 {[%clk 0:01:28.3]} 45... Rxg2+ {[%clk
0:01:35.7]} 46. Kh1 {[%clk 0:01:28.6]} 46... Rh2+ {[%clk 0:01:28.9]} 47. Kg1
{[%clk 0:01:27.4]} 47... Rbg2+ {[%clk 0:01:28.2]} 48. Kf1 {[%clk 0:01:27.2]}
48... Rc2 {[%clk 0:01:24.2]} 49. Rxe6+ {[%clk 0:01:26.5]} 49... Kg5 {[%clk
0:01:24.6]} 50. Kg1 {[%clk 0:01:26.4]} 50... Rhg2+ {[%clk 0:01:20.6]} 51. Kf1
{[%clk 0:01:26.3]} 51... Rgd2 {[%clk 0:01:16.9]} 52. Re8 {[%clk 0:01:20.7]}
52... Kh4 {[%clk 0:01:10.4]} 53. Kg1 {[%clk 0:01:19.4]} 53... Rxc3 {[%clk
0:01:05.9]} 54. R8e5 {[%clk 0:01:14.1]} 54... Rg3+ {[%clk 0:01:03.3]} 55. Kh1
{[%clk 0:01:14.1]} 55... Rh3+ {[%clk 0:00:59.9]} 56. Kg1 {[%clk 0:01:14]} 56...
Rg3+ {[%clk 0:00:57]} 57. Kh1 {[%clk 0:01:13.6]} 57... Rf3 {[%clk 0:00:57.3]}
58. Rxd5 {[%clk 0:01:08.7]} 58... Kh3 {[%clk 0:00:56.9]} 59. Rd8 {[%clk
0:01:02.3]} 59... Rff2 {[%clk 0:00:52.4]} 60. Re3+ {[%clk 0:00:57.3]} 60... Rf3
{[%clk 0:00:50.4]} 61. Re1 {[%clk 0:00:54.3]} 61... Kg3 {[%clk 0:00:48.2]} 62.
d5 {[%clk 0:00:51.8]} 62... Rff2 {[%clk 0:00:48]} 63. Re3+ {[%clk 0:00:45.5]}
63... Kf4 {[%clk 0:00:47.5]} 64. Re1 {[%clk 0:00:45.2]} 64... Kf3 {[%clk
0:00:46.2]} 65. Rh8 {[%clk 0:00:40.5]} 65... g3 {[%clk 0:00:42.4]} 66. d6 {[%clk
0:00:36]} 66... Rxd6 {[%clk 0:00:40.2]} 67. Rh5 {[%clk 0:00:33.8]} 67... f4
{[%clk 0:00:39.9]} 68. Kg1 {[%clk 0:00:33.5]} 68... Rdd2 {[%clk 0:00:38.6]} 69.
Kh1 {[%clk 0:00:31.6]} 69... Rh2+ {[%clk 0:00:37.1]} 70. Rxh2 {[%clk 0:00:30]}
70... Rxh2+ {[%clk 0:00:38]} 71. Kg1 {[%clk 0:00:30.4]} 71... Ra2 {[%clk
0:00:37.9]} 72. Rd1 {[%clk 0:00:30.1]} 72... Kg4 {[%clk 0:00:36.1]} 73. Rc1
{[%clk 0:00:30.4]} 73... f3 {[%clk 0:00:35.5]} 74. Rc4+ {[%clk 0:00:29.9]} 74...
Kh3 {[%clk 0:00:35.3]} 75. Rc1 {[%clk 0:00:29.1]} 75... Re2 {[%clk 0:00:33.2]}
76. Rd1 {[%clk 0:00:24.9]} 76... f2+ {[%clk 0:00:32.6]} 77. Kf1 {[%clk
0:00:24.9]} 77... Re1+ {[%clk 0:00:32.5]} 78. Rxe1 {[%clk 0:00:22.2]} 78...
fxe1=Q+ {[%clk 0:00:31.2]} 79. Kxe1 {[%clk 0:00:23.1]} 79... g2 {[%clk
0:00:30.9]} 0-1